Workbook

Sheet Intro
A1: Multi, intro hold
E5: 1 | F5: 2 | G5: 3 | H5: 4 | I5: 5 | J5: 6 | K5: 7 | L5: 8 | M5: 9 | N5: 10 | O5: 11 | P5: 12 | Q5: 13 | R5: 14 | S5: 15 | T5: 16 | V5: Total | X5: Placering
A7: Benny Marquart - Asger Bruun | E7: 19.71 | F7: 15 | G7: 15.86 | H7: 12.57 | I7: 8.57 | J7: 10.14 | K7: 11.57 | L7: 19.29 | M7: 8.71 | N7: 11.43 | O7: 14.14 | P7: 11 | Q7: 15.86 | R7: 22 | S7: 11.71 | T7: 11.71 | V7: =AVERAGE(E7:T7) -> 13.704375 | X7: 14
A8: H K Sørensen - Niels Henriksen | E8: 15.14 | F8: 12.43 | G8: 16.71 | H8: 13.86 | I8: 18.43 | J8: 16.29 | K8: 16.57 | L8: 16.29 | M8: 16.29 | N8: 8.71 | O8: 10 | P8: 17.29 | Q8: 9.43 | R8: 20.57 | S8: 12.14 | T8: 12.14 | V8: =AVERAGE(E8:T8) -> 14.518125 | X8: 9
A10: Camilla Bo Krefeld - Johan Hammelev | E10: 13 | F10: 17.86 | G10: 14.14 | H10: 16 | I10: 12.71 | J10: 19.14 | K10: 15.43 | L10: 22.29 | M10: 11 | N10: 13.57 | O10: 14.43 | P10: 17 | Q10: 19.43 | R10: 12.14 | S10: 21.43 | T10: 15.43 | V10: =AVERAGE(E10:T10) -> 15.9375 | X10: 5
A11: Jørgen Anker Pabst - Vagn Søndergaard | E11: 16.29 | F11: 14.86 | G11: 13.29 | H11: 17 | I11: 11.43 | J11: 9.43 | K11: 12.71 | L11: 13.43 | M11: 7.71 | N11: 17.29 | O11: 3.29 | P11: 10.43 | Q11: 17.71 | R11: 17.86 | S11: 12.86 | T11: 12.43 | V11: =AVERAGE(E11:T11) -> 13.00125 | X11: 16
A13: Christian Schmidt - Michael Dodt | E13: 15.71 | F13: 20.14 | G13: 16.29 | H13: 12.86 | I13: 21.43 | J13: 13.71 | K13: 14.57 | L13: 16.57 | M13: 15.43 | N13: 7.14 | O13: 6.71 | P13: 11.14 | Q13: 16 | R13: 13.43 | S13: 10.71 | T13: 14.14 | V13: =AVERAGE(E13:T13) -> 14.12375 | X13: 11
A14: Stense Farholt - Henrik Caspersen | E14: 18.29 | F14: 16.86 | G14: 18.57 | H14: 15.29 | I14: 11.57 | J14: 19.71 | K14: 17.29 | L14: 7.43 | M14: 21.86 | N14: 10.14 | O14: 18 | P14: 17.71 | Q14: 20.43 | R14: 10.14 | S14: 18.71 | T14: 9.14 | V14: =AVERAGE(E14:T14) -> 15.69625 | X14: 7
A16: Claus Hastrup - Thomas Mathiasen | E16: 11.57 | F16: 11 | G16: 16.29 | H16: 3 | I16: 10.43 | J16: 23 | K16: 18.43 | L16: 13.71 | M16: 21.86 | N16: 16.43 | O16: 22.43 | P16: 12.29 | Q16: 14.86 | R16: 6.57 | S16: 8.57 | T16: 17.57 | V16: =AVERAGE(E16:T16) -> 14.250625 | X16: 10
A17: Jørgen Cilleborg Hansen - Steen Schou | E17: 10.29 | F17: 19.86 | G17: 16.43 | H17: 5.71 | I17: 12.86 | J17: 10.57 | K17: 13.43 | L17: 10.71 | M17: 19 | N17: 12.71 | O17: 11.43 | P17: 18.86 | Q17: 18.57 | R17: 7.86 | S17: 17.14 | T17: 14.57 | V17: =AVERAGE(E17:T17) -> 13.75 | X17: 13
A19: Dennis Bilde - Morten Bilde | E19: 19.71 | F19: 19 | G19: 15.57 | H19: 15.71 | I19: 20.43 | J19: 18 | K19: 13.71 | L19: 15.86 | M19: 20.86 | N19: 21.14 | O19: 15.14 | P19: 19.57 | Q19: 9.57 | R19: 16.57 | S19: 12.86 | T19: 18.71 | V19: =AVERAGE(E19:T19) -> 17.025625 | X19: 1
A20: Tom Nørgaard - Trine Bilde | E20: 18.43 | F20: 10.14 | G20: 16.86 | H20: 14 | I20: 14.29 | J20: 20.71 | K20: 15.29 | L20: 18.86 | M20: 13.71 | N20: 18.57 | O20: 24.29 | P20: 13 | Q20: 14 | R20: 19.71 | S20: 13.86 | T20: 16.29 | V20: =AVERAGE(E20:T20) -> 16.375625 | X20: 2
A22: Jan Pedersen - Nils Mønsted | E22: 14.29 | F22: 13.14 | G22: 13.57 | H22: 24.71 | I22: 9.57 | J22: 9.14 | K22: 16.57 | L22: 19.57 | M22: 20.86 | N22: 18.29 | O22: 19.86 | P22: 19 | Q22: 12.29 | R22: 17.86 | S22: 17.14 | T22: 13.71 | V22: =AVERAGE(E22:T22) -> 16.223125 | X22: 3
A23: Lars Tofte - Emil Jepsen | E23: 11.71 | F23: 9.86 | G23: 13.71 | H23: 23.57 | I23: 15.71 | J23: 12 | K23: 15.86 | L23: 10.57 | M23: 17.29 | N23: 14.86 | O23: 15.71 | P23: 12.71 | Q23: 10.57 | R23: 11.86 | S23: 16.14 | T23: 11.29 | V23: =AVERAGE(E23:T23) -> 13.96375 | X23: 12
A25: Keld Grann - Lars Peter Damgaard | E25: 13.71 | F25: 12.14 | G25: 13.71 | H25: 14.29 | I25: 17.14 | J25: 6.14 | K25: 16.29 | L25: 11.14 | M25: 12.71 | N25: 11.71 | O25: 16.57 | P25: 11.43 | Q25: 14.14 | R25: 8.86 | S25: 17.86 | T25: 18.29 | V25: =AVERAGE(E25:T25) -> 13.508125 | X25: 15
A26: Marlene Henneberg - J.O Henneberg | E26: 17 | F26: 15.14 | G26: 11.43 | H26: 16.71 | I26: 19.57 | J26: 19.43 | K26: 14.71 | L26: 14.14 | M26: 8.86 | N26: 15.14 | O26: 19.43 | P26: 17.71 | Q26: 20.57 | R26: 7.43 | S26: 18.29 | T26: 17.86 | V26: =AVERAGE(E26:T26) -> 15.83875 | X26: 6
A28: Majka Cilleborg Bilde - Peter Jepsen | E28: 14.86 | F28: 15 | G28: 13.14 | H28: 14.29 | I28: 18.57 | J28: 10.57 | K28: 13.43 | L28: 19.29 | M28: 14.57 | N28: 19.71 | O28: 13.43 | P28: 12.29 | Q28: 11.43 | R28: 22.43 | S28: 11.29 | T28: 15.86 | V28: =AVERAGE(E28:T28) -> 15.01 | X28: 8
A29: Niels Krøjgaard - Mads Krøjgaard | E29: 10.29 | F29: 17.57 | G29: 14.43 | H29: 15.86 | I29: 17.29 | J29: 20 | K29: 14.14 | L29: 10.29 | M29: 7.57 | N29: 22.57 | O29: 10 | P29: 18.57 | Q29: 15.14 | R29: 21.29 | S29: 19.29 | T29: 20.86 | V29: =AVERAGE(E29:T29) -> 15.9475 | X29: 4

Sheet RR1
A1: Multi, RR1
E5: 1 | F5: 2 | G5: 3 | H5: 4 | I5: 5 | J5: 6 | K5: 7 | L5: 8 | M5: 9 | N5: 10 | O5: 11 | P5: 12 | Q5: 13 | R5: 14 | T5: Total | U5: Placering
A7: Claus Hastrup - Thomas Mathiasen | E7: 6.57 | F7: 6.71 | G7: 11.43 | H7: 7.43 | I7: 5.14 | J7: 12.43 | K7: 10.43 | L7: 6.57 | M7: 14.86 | N7: 16.86 | O7: 13.43 | P7: 18 | Q7: 9.29 | R7: 6.71 | T7: =AVERAGE(E7:R7) -> 10.41857143 | U7: 16
A8: Christian Schmidt - Michael Dodt | E8: 9 | F8: 14.86 | G8: 4.86 | H8: 2.29 | I8: 18.14 | J8: 14.43 | K8: 3 | L8: 16.43 | M8: 15.71 | N8: 21.29 | O8: 9.29 | P8: 2.71 | Q8: 13 | R8: 12.86 | T8: =AVERAGE(E8:R8) -> 11.27642857 | U8: 14
A10: Jørgen Cilleborg Hansen - Steen Schou | E10: 17.57 | F10: 8.29 | G10: 23.57 | H10: 21.14 | I10: 20.71 | J10: 6.14 | K10: 14.29 | L10: 19.14 | M10: 14 | N10: 12.43 | O10: 18.29 | P10: 22.29 | Q10: 16.71 | R10: 11.14 | T10: =AVERAGE(E10:R10) -> 16.12214286 | U10: 6
A11: Camilla Bo Krefeld - Johan Hammelev | E11: 16.71 | F11: 12.86 | G11: 18.14 | H11: 23.71 | I11: 15 | J11: 11.86 | K11: 6.86 | L11: 22 | M11: 13 | N11: 21.29 | O11: 22.14 | P11: 7.29 | Q11: 8.86 | R11: 21.71 | T11: =AVERAGE(E11:R11) -> 15.81642857 | U11: 7
A13: Jørgen Anker Pabst - Vagn Søndergaard | E13: 15.57 | F13: 18.29 | G13: 16 | H13: 15.71 | I13: 11.86 | J13: 17.43 | K13: 22.29 | L13: 10.43 | M13: 10.86 | N13: 5.29 | O13: 8.43 | P13: 14.43 | Q13: 22 | R13: 15.86 | T13: =AVERAGE(E13:R13) -> 14.60357143 | U13: 11
A14: H K Sørensen - Niels Henriksen | E14: 11.57 | F14: 16.71 | G14: 13.43 | H14: 18.71 | I14: 23.14 | J14: 15.57 | K14: 15.57 | L14: 7.43 | M14: 19.57 | N14: 13 | O14: 21 | P14: 12.14 | Q14: 15.57 | R14: 17.57 | T14: =AVERAGE(E14:R14) -> 15.78428571 | U14: 8
A16: Stense Farholt - Henrik Caspersen | E16: 22.43 | F16: 8.43 | G16: 22.29 | H16: 17.14 | I16: 21 | J16: 12.14 | K16: 19 | L16: 13.57 | M16: 16.86 | N16: 17.43 | O16: 21 | P16: 17.86 | Q16: 11.43 | R16: 18.43 | T16: =AVERAGE(E16:R16) -> 17.07214286 | U16: 2
A17: Lars Tofte - Emil Jepsen | E17: 20.14 | F17: 19.14 | G17: 19.57 | H17: 23.43 | I17: 19.57 | J17: 17.29 | K17: 24.57 | L17: 22.29 | M17: 16 | N17: 7.71 | O17: 8.57 | P17: 15.29 | Q17: 16.29 | R17: 21.57 | T17: =AVERAGE(E17:R17) -> 17.95928571 | U17: 1
A19: Benny Marquart - Asger Bruun | E19: 7.14 | F19: 10.56 | G19: 6 | H19: 16.57 | I19: 15.43 | J19: 10.57 | K19: 8.86 | L19: 5.29 | M19: 15 | N19: 7.86 | O19: 7.29 | P19: 7 | Q19: 14.43 | R19: 14.14 | T19: =AVERAGE(E19:R19) -> 10.43857143 | U19: 15
A20: Keld Grann - Lars Peter Damgaard | E20: 9.57 | F20: 21 | G20: 12.71 | H20: 8.71 | I20: 7.29 | J20: 12 | K20: 15.86 | L20: 11.43 | M20: 13.86 | N20: 13.14 | O20: 11.71 | P20: 22 | Q20: 7.71 | R20: 12.43 | T20: =AVERAGE(E20:R20) -> 12.81571429 | U20: 13
A22: Majka Cilleborg Bilde - Peter Jepsen | E22: 14.43 | F22: 13.29 | G22: 7.14 | H22: 3 | I22: 21.71 | J22: 19.43 | K22: 16.57 | L22: 17.29 | M22: 12.71 | N22: 7.71 | O22: 20.71 | P22: 12 | Q22: 13.29 | R22: 7.43 | T22: =AVERAGE(E22:R22) -> 13.33642857 | U22: 12
A23: Dennis Bilde - Morten Bilde | E23: 18.43 | F23: 11.57 | G23: 9.86 | H23: 11.43 | I23: 14.57 | J23: 18 | K23: 9.29 | L23: 18 | M23: 3 | N23: 15.14 | O23: 16.57 | P23: 24.86 | Q23: 21 | R23: 18.57 | T23: =AVERAGE(E23:R23) -> 15.02071429 | U23: 10
A25: Jan Pedersen - Nils Mønsted | E25: 13.29 | F25: 21.29 | G25: 16.57 | H25: 13.71 | I25: 9.86 | J25: 17.71 | K25: 14 | L25: 23.43 | M25: 24.86 | N25: 21.57 | O25: 8.29 | P25: 16.29 | Q25: 20.57 | R25: 17.14 | T25: =AVERAGE(E25:R25) -> 17.04142857 | U25: 3
A26: Tom Nørgaard - Trine Bilde | E26: 12.43 | F26: 17.14 | G26: 14 | H26: 9.86 | I26: 8.29 | J26: 12.71 | K26: 20.43 | L26: 18.29 | M26: 17 | N26: 14.86 | O26: 12.71 | P26: 17.57 | Q26: 17 | R26: 22.57 | T26: =AVERAGE(E26:R26) -> 15.34714286 | U26: 9
A28: Marlene Henneberg - J.O Henneberg | E28: 20.43 | F28: 22.71 | G28: 22.86 | H28: 19.86 | I28: 8.57 | J28: 18.14 | K28: 13.29 | L28: 12 | M28: 9.86 | N28: 23.29 | O28: 17.29 | P28: 13.57 | Q28: 18.57 | R28: 8 | T28: =AVERAGE(E28:R28) -> 16.31714286 | U28: 5
A29: Niels Krøjgaard - Mads Krøjgaard | E29: 23 | F29: 15.14 | G29: 17.29 | H29: 12.14 | I29: 14.86 | J29: 23.57 | K29: 20.57 | L29: 12.71 | M29: 18.57 | N29: 16.86 | O29: 21.29 | P29: 11.86 | Q29: 13.71 | R29: 11.57 | T29: =AVERAGE(E29:R29) -> 16.65285714 | U29: 4

Sheet Imp1
A1: IMP Par I
B4: 1.aften | C4: 2.aften | D4: 3.aften | E4: 4.aften | F4: 5.aften | H4: Sum | I4: Placering
A6: Jørgen Cilleborg Hansen - Steen Schou | B6: 189 | C6: 306 | D6: 109 | E6: 26 | F6: 582 | H6: =SUM(B6:F6) -> 1212 | I6: 1
A7: Jan Pedersen - Nils Mønsted | B7: 266 | C7: 53 | D7: 519 | E7: -272 | F7: 86 | H7: 652 | I7: 2
A8: Dennis Bilde - Morten Bilde | B8: 59 | C8: 2 | D8: 336 | E8: 254 | F8: -24 | H8: 627 | I8: 3
A9: Jørgen Anker Pabst - Vagn Søndergaard | B9: -78 | C9: 176 | D9: 28 | E9: 185 | F9: 106 | H9: 417 | I9: 4
A10: Niels Krøjgaard - Mads Krøjgaard | B10: 305 | C10: 159 | D10: -235 | E10: 212 | F10: -58 | H10: 383 | I10: 5
A11: Claus Hastrup - Thomas Mathiasen | B11: 146 | C11: 145 | D11: 337 | E11: -181 | F11: -408 | H11: 39 | I11: 6
A12: Stense Farholt - Henrik Caspersen | B12: 222 | C12: -273 | D12: -69 | E12: -267 | F12: 378 | H12: -9 | I12: 7
A13: Lars Tofte - Emil Jepsen | B13: -103 | C13: -167 | D13: 115 | E13: -75 | F13: 100 | H13: -130 | I13: 8
A14: Marlene Henneberg - J.O Henneberg | B14: 108 | C14: 72 | D14: -189 | E14: -42 | F14: -95 | H14: -146 | I14: 9
A15: H K Sørensen - Niels Henriksen | B15: 70 | C15: -3 | D15: -229 | E15: 44 | F15: -29 | H15: -147 | I15: 10
A16: Camilla Bo Krefeld - Johan Hammelev | B16: -116 | C16: 239 | D16: 100 | E16: 11 | F16: -442 | H16: -208 | I16: 11
A17: Tom Nørgaard - Trine Bilde | B17: -235 | C17: -18 | D17: -369 | E17: 167 | F17: 142 | H17: -313 | I17: 12
A18: Benny Marquart - Asger Bruun | B18: 41 | C18: -173 | D18: -245 | E18: 19 | F18: 21 | H18: -337 | I18: 13
A19: Keld Grann - Lars Peter Damgaard | B19: -301 | C19: -177 | D19: -3 | E19: 49 | F19: 43 | H19: -389 | I19: 14
A20: Majka Cilleborg Bilde - Peter Jepsen | B20: -134 | C20: -286 | D20: -32 | E20: 22 | F20: -332 | H20: -762 | I20: 15
A21: Christian Schmidt - Michael Dodt | B21: -439 | C21: -55 | D21: -173 | E21: -152 | F21: -70 | H21: -889 | I21: 16

Sheet RR2
A1: Multi, RR2
E5: 1 | F5: 2 | G5: 3 | H5: 4 | I5: 5 | J5: 6 | K5: 7 | L5: 8 | M5: 9 | N5: 10 | O5: 11 | P5: 12 | Q5: 13 | R5: 14 | T5: Total | U5: Placering
A7: Claus Hastrup - Thomas Mathiasen | E7: 7.86 | F7: 12 | G7: 19 | H7: 18.57 | I7: 16.14 | J7: 14.43 | K7: 12.71 | L7: 18.71 | M7: 5.86 | N7: 4.86 | O7: 15.86 | P7: 17.43 | Q7: 20 | R7: 21 | T7: =AVERAGE(E7:R7) -> 14.60214286 | U7: 9
A8: Christian Schmidt - Michael Dodt | E8: 9.14 | F8: 11.43 | G8: 17.43 | H8: 7.43 | I8: 14.57 | J8: 16.43 | K8: 24.57 | L8: 15.43 | M8: 15.14 | N8: 11.57 | O8: 17.43 | P8: 13.14 | Q8: 8.86 | R8: 19.86 | T8: =AVERAGE(E8:R8) -> 14.45928571 | U8: 12
A10: Jørgen Cilleborg Hansen - Steen Schou | E10: 19.14 | F10: 15.86 | G10: 22.29 | H10: 14 | I10: 15.43 | J10: 15.57 | K10: 16.57 | L10: 20.43 | M10: 12.14 | N10: 17 | O10: 16.43 | P10: 16.43 | Q10: 14.57 | R10: 13.43 | T10: =AVERAGE(E10:R10) -> 16.37785714 | U10: 2
A11: Camilla Bo Krefeld - Johan Hammelev | E11: 11.14 | F11: 19.43 | G11: 12.57 | H11: 19.86 | I11: 13.86 | J11: 13.57 | K11: 21.29 | L11: 23.86 | M11: 22.29 | N11: 7.57 | O11: 17.43 | P11: 13.86 | Q11: 13.29 | R11: 14.57 | T11: =AVERAGE(E11:R11) -> 16.04214286 | U11: 4
A13: Jørgen Anker Pabst - Vagn Søndergaard | E13: 16.57 | F13: 17.86 | G13: 16.14 | H13: 10.71 | I13: 8.86 | J13: 16.29 | K13: 3.71 | L13: 10.71 | M13: 13.43 | N13: 17.14 | O13: 13.57 | P13: 16.14 | Q13: 21 | R13: 21.14 | T13: =AVERAGE(E13:R13) -> 14.51928571 | U13: 10
A14: H K Sørensen - Niels Henriksen | E14: 18 | F14: 16.71 | G14: 8.86 | H14: 17.57 | I14: 11.71 | J14: 12.43 | K14: 17.29 | L14: 14.57 | M14: 16 | N14: 12.57 | O14: 12.57 | P14: 13.57 | Q14: 8 | R14: 23 | T14: =AVERAGE(E14:R14) -> 14.48928571 | U14: 11
A16: Stense Farholt - Henrik Caspersen | E16: 18.71 | F16: 14.14 | G16: 13.86 | H16: 12.43 | I16: 15.71 | J16: 16.57 | K16: 9.43 | L16: 12.29 | M16: 15.29 | N16: 16.43 | O16: 12.57 | P16: 12.57 | Q16: 12.71 | R16: 14.43 | T16: =AVERAGE(E16:R16) -> 14.08142857 | U16: 13
A17: Lars Tofte - Emil Jepsen | E17: 10.86 | F17: 10.57 | G17: 21 | H17: 19.14 | I17: 20.57 | J17: 23 | K17: 13.43 | L17: 16.14 | M17: 16.43 | N17: 14.71 | O17: 14.14 | P17: 16.86 | Q17: 13.43 | R17: 12.43 | T17: =AVERAGE(E17:R17) -> 15.90785714 | U17: 5
A19: Benny Marquart - Asger Bruun | E19: 22.57 | F19: 7.57 | G19: 11 | H19: 22 | I19: 14.14 | J19: 3.86 | K19: 8.14 | L19: 9.14 | M19: 14 | N19: 12.86 | O19: 9.14 | P19: 17 | Q19: 16.57 | R19: 15.57 | T19: =AVERAGE(E19:R19) -> 13.11142857 | U19: 14
A20: Keld Grann - Lars Peter Damgaard | E20: 12.29 | F20: 12.86 | G20: 12.57 | H20: 11.29 | I20: 4.29 | J20: 12.86 | K20: 13.29 | L20: 4.57 | M20: 16.57 | N20: 17.43 | O20: 14.57 | P20: 6.86 | Q20: 17.29 | R20: 17.43 | T20: =AVERAGE(E20:R20) -> 12.44071429 | U20: 16
A22: Majka Cilleborg Bilde - Peter Jepsen | E22: 7 | F22: 17.14 | G22: 7.57 | H22: 10 | I22: 18.29 | J22: 13.57 | K22: 14.86 | L22: 8.29 | M22: 13.57 | N22: 13.57 | O22: 14.71 | P22: 11 | Q22: 20.86 | R22: 8.57 | T22: =AVERAGE(E22:R22) -> 12.78571429 | U22: 15
A23: Dennis Bilde - Morten Bilde | E23: 17.71 | F23: 22.43 | G23: 17.43 | H23: 16 | I23: 20.57 | J23: 17.14 | K23: 18.71 | L23: 12.86 | M23: 14.71 | N23: 15.29 | O23: 19.57 | P23: 19.43 | Q23: 10 | R23: 10.14 | T23: =AVERAGE(E23:R23) -> 16.57071429 | U23: 1
A25: Jan Pedersen - Nils Mønsted | E25: 13.43 | F25: 13.29 | G25: 12.57 | H25: 23.43 | I25: 8.86 | J25: 13.43 | K25: 15.14 | L25: 17.14 | M25: 14.86 | N25: 24.29 | O25: 15.43 | P25: 13 | Q25: 15.43 | R25: 15.43 | T25: =AVERAGE(E25:R25) -> 15.40928571 | U25: 8
A26: Tom Nørgaard - Trine Bilde | E26: 12 | F26: 12.14 | G26: 11.57 | H26: 12 | I26: 14.29 | J26: 6.43 | K26: 10.71 | L26: 21.14 | M26: 23.57 | N26: 18.14 | O26: 20.86 | P26: 23 | Q26: 16.71 | R26: 16.57 | T26: =AVERAGE(E26:R26) -> 15.65214286 | U26: 7
A28: Marlene Henneberg - J.O Henneberg | E28: 20.71 | F28: 18 | G28: 17.43 | H28: 18 | I28: 15.71 | J28: 16.86 | K28: 16.57 | L28: 17.71 | M28: 7.14 | N28: 12.86 | O28: 10.43 | P28: 18.86 | Q28: 21.86 | R28: 8.43 | T28: =AVERAGE(E28:R28) -> 15.755 | U28: 6
A29: Niels Krøjgaard - Mads Krøjgaard | E29: 21.71 | F29: 18.57 | G29: 18.43 | H29: 5.86 | I29: 24.43 | J29: 24.71 | K29: 20 | L29: 13.86 | M29: 17.86 | N29: 22 | O29: 15.29 | P29: 10.57 | Q29: 8.86 | R29: 6 | T29: =AVERAGE(E29:R29) -> 16.29642857 | U29: 3

Sheet Hold i alt
A1: Klub 32 - Hold 2013/2014
B5: RR1 | C5: RR2 | D5: Total | E5: Placering
A6: Marlene Henneberg | B6: 130 | C6: 120 | D6: =SUM(B6:C6) -> 250 | E6: 1 | F6: (indbyrdes 10-20 og 21-9)
A7: Stense Farholt | B7: 144 | C7: 106 | D7: 250 | E7: 2
A8: Camilla Bo Krefeld | B8: 119 | C8: 122 | D8: 241 | E8: 3
A9: Jan Pedersen | B9: 123 | C9: 111 | D9: 234 | E9: 4
A10: Vagn Søndergaard | B10: 116 | C10: 97 | D10: 213 | E10: 5
A11: Dennis Bilde | B11: 94 | C11: 101 | D11: 195 | E11: 6
A12: Claus Hastrup | B12: 41 | C12: 100 | D12: 141 | E12: 7
A13: Asger Bruhn | B13: 48 | C13: 68 | D13: 116 | E13: 8

Sheet Slutspil
A1: SLUTSPIL
E5: 1 | F5: 2 | G5: 3 | H5: 4 | I5: 5 | J5: 6 | K5: 7 | L5: 8 | N5: Total | O5: Placering
A7: Claus Hastrup - Thomas Mathiasen | E7: 1.31 | F7: 4.9 | G7: 3.53 | H7: 10.96 | I7: 12.19 | J7: 1.4 | K7: 3.46 | L7: 13.23 | N7: =AVERAGE(E7:L7) -> 6.3725 | O7: 16
A8: Christian Schmidt - Michael Dodt | E8: 8.54 | F8: 6.48 | G8: 4.95 | H8: 5.49 | I8: 11.33 | J8: 6.37 | K8: 9.25 | L8: 9.54 | N8: =AVERAGE(E8:L8) -> 7.74375 | O8: 14
A10: Jørgen Cilleborg Hansen - Steen Schou | E10: 15.5 | F10: 10.54 | G10: 11.26 | H10: 8.9 | I10: 6.66 | J10: 10.31 | K10: 16.08 | L10: 2.95 | N10: =AVERAGE(E10:L10) -> 10.275 | O10: 10
A11: Camilla Bo Krefeld - Johan Hammelev | E11: 5.51 | F11: 11.15 | G11: 9.71 | H11: 12.18 | I11: 8.71 | J11: 4.81 | K11: 7.8 | L11: 9.84 | N11: =AVERAGE(E11:L11) -> 8.71375 | O11: 13
A13: Jørgen Anker Pabst - Vagn Søndergaard | E13: 18.69 | F13: 13.52 | G13: 15.05 | H13: 9.04 | I13: 5.9 | J13: 7.03 | K13: 13.41 | L13: 12.09 | N13: =AVERAGE(E13:L13) -> 11.84125 | O13: 2
A14: H K Sørensen - Niels Henriksen | E14: 11.46 | F14: 15.1 | G14: 16.47 | H14: 14.51 | I14: 7.32 | J14: 11.56 | K14: 4.02 | L14: 9.69 | N14: =AVERAGE(E14:L14) -> 11.26625 | O14: 3
A16: Stense Farholt - Henrik Caspersen | E16: 14.09 | F16: 6.51 | G16: 4.87 | H16: 10.74 | I16: 16.48 | J16: 6.72 | K16: 10.91 | L16: 11.43 | N16: =AVERAGE(E16:L16) -> 10.21875 | O16: 11
A17: Lars Tofte - Emil Jepsen | E17: 13.42 | F17: 6.46 | G17: 1.87 | H17: 10.33 | I17: 14.99 | J17: 10.73 | K17: 15.59 | L17: 12.23 | N17: =AVERAGE(E17:L17) -> 10.7025 | O17: 7
A19: Benny Marquart - Asger Bruun | E19: 5.84 | F19: 11.98 | G19: 5.6 | H19: 16.49 | I19: 8.67 | J19: 18.6 | K19: 10.75 | L19: 6.77 | N19: =AVERAGE(E19:L19) -> 10.5875 | O19: 8
A20: Keld Grann - Lars Peter Damgaard | E20: 9.27 | F20: 11.07 | G20: 5.56 | H20: 13.89 | I20: 7.81 | J20: 13.63 | K20: 16.54 | L20: 10.46 | N20: =AVERAGE(E20:L20) -> 11.02875 | O20: 4
A22: Majka Cilleborg Bilde - Peter Jepsen | E22: 10.73 | F22: 8.02 | G22: 14.44 | H22: 3.51 | I22: 12.68 | J22: 12.97 | K22: 15.98 | L22: 7.91 | N22: =AVERAGE(E22:L22) -> 10.78 | O22: 6
A23: Dennis Bilde - Morten Bilde | E23: 14.16 | F23: 8.93 | G23: 14.4 | H23: 6.11 | I23: 14.1 | J23: 8.44 | K23: 6.59 | L23: 10.31 | N23: =AVERAGE(E23:L23) -> 10.38 | O23: 9
A25: Jan Pedersen - Nils Mønsted | E25: 4.5 | F25: 8.85 | G25: 10.29 | H25: 11.1 | I25: 3.52 | J25: 9.27 | K25: 4.41 | L25: 8.57 | N25: =AVERAGE(E25:L25) -> 7.56375 | O25: 15
A26: Tom Nørgaard - Trine Bilde | E26: 14.49 | F26: 9.46 | G26: 8.74 | H26: 7.82 | I26: 5.01 | J26: 13.27 | K26: 9.09 | L26: 7.77 | N26: =AVERAGE(E26:L26) -> 9.45625 | O26: 12
A28: Marlene Henneberg - J.O Henneberg | E28: 6.58 | F28: 13.49 | G28: 15.13 | H28: 9.67 | I28: 13.34 | J28: 15.19 | K28: 3.92 | L28: 10.16 | N28: =AVERAGE(E28:L28) -> 10.935 | O28: 5
A29: Niels Krøjgaard - Mads Krøjgaard | E29: 5.91 | F29: 13.54 | G29: 18.13 | H29: 9.26 | I29: 11.29 | J29: 9.69 | K29: 12.2 | L29: 17.05 | N29: =AVERAGE(E29:L29) -> 12.13375 | O29: 1

Sheet Imp2
B3: 1.aften | C3: 2.aften | D3: 3.aften | F3: Sum | G3: Placering
A5: Jørgen Cilleborg Hansen - Steen Schou | B5: 56 | C5: 28 | D5: 416 | F5: =SUM(B5:D5) -> 500 | G5: 1
A6: Stense Farholt - Henrik Caspersen | B6: 131 | C6: 95 | D6: 179 | F6: 405 | G6: 2
A7: Dennis Bilde - Morten Bilde | B7: 180 | C7: 282 | D7: -87 | F7: 375 | G7: 3
A8: Camilla Bo Krefeld - Johan Hammelev | B8: 131 | C8: -10 | D8: 215 | F8: 336 | G8: 4
A9: Lars Tofte - Emil Jepsen | B9: 280 | C9: 95 | D9: -104 | F9: 271 | G9: 5
A10: Tom Nørgaard - Trine Bilde | B10: -128 | C10: 310 | D10: -17 | F10: 165 | G10: 6
A11: Jan Pedersen - Nils Mønsted | B11: 84 | C11: -46 | D11: 109 | F11: 147 | G11: 7
A12: Marlene Henneberg - J.O Henneberg | B12: -347 | C12: 186 | D12: 269 | F12: 108 | G12: 8
A13: Claus Hastrup - Thomas Mathiasen | B13: -97 | C13: 188 | D13: 4 | F13: 95 | G13: 9
A14: Benny Marquart - Asger Bruun | B14: 23 | C14: 43 | D14: -212 | F14: -146 | G14: 10
A15: Majka Cilleborg Bilde - Peter Jepsen | B15: 134 | C15: -83 | D15: -258 | F15: -207 | G15: 11
A16: Keld Grann - Lars Peter Damgaard | B16: -1 | C16: -377 | D16: 114 | F16: -264 | G16: 12
A17: Niels Krøjgaard - Mads Krøjgaard | B17: -125 | C17: 13 | D17: -181 | F17: -293 | G17: 13
A18: Jørgen Anker Pabst - Vagn Søndergaard | B18: -77 | C18: -293 | D18: -10 | F18: -380 | G18: 14
A19: H K Sørensen - Niels Henriksen | B19: -146 | C19: -282 | D19: -18 | F19: -446 | G19: 15
A20: Christian Schmidt - Michael Dodt | B20: -98 | C20: -149 | D20: -419 | F20: -666 | G20: 16

Sheet Grand prix
A1: Grand prix klub 32 (2013-2014)
F5: Intro hold | G5: RR 1 | H5: IMP1 | I5: RR2 | J5: Slutspil | K5: IMP2 | M5: Total | O5: Placering
A7: =Intro!A7 -> Benny Marquart - Asger Bruun | F7: =Intro!X7*4 -> 56 | G7: ='RR1'!U19*7 -> 105 | H7: ='Imp1'!I18*5 -> 65 | I7: ='RR2'!U19*7 -> 98 | J7: =Slutspil!O19*4 -> 32 | K7: ='Imp2'!G14*3 -> 30 | M7: =SUM(F7:L7) -> 386 | O7: 15
A9: =Intro!A8 -> H K Sørensen - Niels Henriksen | F9: =Intro!X8*4 -> 36 | G9: ='RR1'!U14*7 -> 56 | H9: ='Imp1'!I15*5 -> 50 | I9: ='RR2'!U14*7 -> 77 | J9: =Slutspil!O14*4 -> 12 | K9: ='Imp2'!G19*3 -> 45 | M9: =SUM(F9:L9) -> 276 | O9: 10
A11: =Intro!A10 -> Camilla Bo Krefeld - Johan Hammelev | F11: =Intro!X10*4 -> 20 | G11: ='RR1'!U11*7 -> 49 | H11: ='Imp1'!I16*5 -> 55 | I11: ='RR2'!U11*7 -> 28 | J11: =Slutspil!O11*4 -> 52 | K11: ='Imp2'!G8*3 -> 12 | M11: =SUM(F11:L11) -> 216 | O11: 7
A13: =Intro!A11 -> Jørgen Anker Pabst - Vagn Søndergaard | F13: =Intro!X11*4 -> 64 | G13: ='RR1'!U13*7 -> 77 | H13: ='Imp1'!I9*5 -> 20 | I13: ='RR2'!U13*7 -> 70 | J13: =Slutspil!O13*4 -> 8 | K13: ='Imp2'!G18*3 -> 42 | M13: =SUM(F13:L13) -> 281 | O13: 11
A15: =Intro!A13 -> Christian Schmidt - Michael Dodt | F15: =Intro!X13*4 -> 44 | G15: ='RR1'!U8*7 -> 98 | H15: ='Imp1'!I21*5 -> 80 | I15: ='RR2'!U8*7 -> 84 | J15: =Slutspil!O8*4 -> 56 | K15: ='Imp2'!G20*3 -> 48 | M15: =SUM(F15:L15) -> 410 | O15: 16
A17: =Intro!A14 -> Stense Farholt - Henrik Caspersen | F17: =Intro!X14*4 -> 28 | G17: ='RR1'!U16*7 -> 14 | H17: ='Imp1'!I12*5 -> 35 | I17: ='RR2'!U16*7 -> 91 | J17: =Slutspil!O16*4 -> 44 | K17: ='Imp2'!G6*3 -> 6 | M17: =SUM(F17:L17) -> 218 | O17: 8
A19: =Intro!A16 -> Claus Hastrup - Thomas Mathiasen | F19: =Intro!X16*4 -> 40 | G19: ='RR1'!U7*7 -> 112 | H19: ='Imp1'!I11*5 -> 30 | I19: ='RR2'!U7*7 -> 63 | J19: =Slutspil!O7*4 -> 64 | K19: ='Imp2'!G13*3 -> 27 | M19: =SUM(F19:L19) -> 336 | O19: 12
A21: =Intro!A17 -> Jørgen Cilleborg Hansen - Steen Schou | F21: =Intro!X17*4 -> 52 | G21: ='RR1'!U10*7 -> 42 | H21: ='Imp1'!I6*5 -> 5 | I21: ='RR2'!U10*7 -> 14 | J21: =Slutspil!O10*4 -> 40 | K21: ='Imp2'!G5*3 -> 3 | M21: =SUM(F21:L21) -> 156 | O21: 3
A23: =Intro!A19 -> Dennis Bilde - Morten Bilde | F23: =Intro!X19*4 -> 4 | G23: ='RR1'!U23*7 -> 70 | H23: ='Imp1'!I8*5 -> 15 | I23: ='RR2'!U23*7 -> 7 | J23: =Slutspil!O23*4 -> 36 | K23: ='Imp2'!G7*3 -> 9 | M23: =SUM(F23:L23) -> 141 | O23: 2
A25: =Intro!A20 -> Tom Nørgaard - Trine Bilde | F25: =Intro!X20*4 -> 8 | G25: ='RR1'!U26*7 -> 63 | H25: ='Imp1'!I17*5 -> 60 | I25: ='RR2'!U26*7 -> 49 | J25: =Slutspil!O26*4 -> 48 | K25: ='Imp2'!G10*3 -> 18 | M25: =SUM(F25:L25) -> 246 | O25: 9
A27: =Intro!A22 -> Jan Pedersen - Nils Mønsted | F27: =Intro!X22*4 -> 12 | G27: ='RR1'!U25*7 -> 21 | H27: ='Imp1'!I7*5 -> 10 | I27: ='RR2'!U25*7 -> 56 | J27: =Slutspil!O25*4 -> 60 | K27: ='Imp2'!G11*3 -> 21 | M27: =SUM(F27:L27) -> 180 | O27: 5
A29: =Intro!A23 -> Lars Tofte - Emil Jepsen | F29: =Intro!X23*4 -> 48 | G29: ='RR1'!U17*7 -> 7 | H29: ='Imp1'!I13*5 -> 40 | I29: ='RR2'!U17*7 -> 35 | J29: =Slutspil!O17*4 -> 28 | K29: ='Imp2'!G9*3 -> 15 | M29: =SUM(F29:L29) -> 173 | O29: 4
A31: =Intro!A25 -> Keld Grann - Lars Peter Damgaard | F31: =Intro!X25*4 -> 60 | G31: ='RR1'!U20*7 -> 91 | H31: ='Imp1'!I19*5 -> 70 | I31: ='RR2'!U20*7 -> 112 | J31: =Slutspil!O20*4 -> 16 | K31: ='Imp2'!G16*3 -> 36 | M31: =SUM(F31:L31) -> 385 | O31: 14
A33: =Intro!A26 -> Marlene Henneberg - J.O Henneberg | F33: =Intro!X26*4 -> 24 | G33: ='RR1'!U28*7 -> 35 | H33: ='Imp1'!I14*5 -> 45 | I33: ='RR2'!U28*7 -> 42 | J33: =Slutspil!O28*4 -> 20 | K33: ='Imp2'!G12*3 -> 24 | M33: =SUM(F33:L33) -> 190 | O33: 6
A35: =Intro!A28 -> Majka Cilleborg Bilde - Peter Jepsen | F35: =Intro!X28*4 -> 32 | G35: ='RR1'!U22*7 -> 84 | H35: ='Imp1'!I20*5 -> 75 | I35: ='RR2'!U22*7 -> 105 | J35: =Slutspil!O22*4 -> 24 | K35: ='Imp2'!G15*3 -> 33 | M35: =SUM(F35:L35) -> 353 | O35: 13
A37: =Intro!A29 -> Niels Krøjgaard - Mads Krøjgaard | F37: =Intro!X29*4 -> 16 | G37: ='RR1'!U29*7 -> 28 | H37: ='Imp1'!I10*5 -> 25 | I37: ='RR2'!U29*7 -> 21 | J37: =Slutspil!O29*4 -> 4 | K37: ='Imp2'!G17*3 -> 39 | M37: =SUM(F37:L37) -> 133 | O37: 1
